Cogmind - Beta 15 @@@ ROGUE MODE // 2025.05.23 @ 22:32:09 Player: amhumam Result: Destroyed self with Mini Grenade Launcher Performance ------------- Evolutions (0) 0 Regions Visited (2) 400 Robots Destroyed (8) 40 Value Destroyed (226) 226 Prototype IDs (0) 0 Alien Tech Used (0) 0 Bonus (25) 25 TOTAL SCORE: 691 Bonus ------- Follower Combat Kills 25 Cogmind --------- Core Integrity 0/250 Matter 260/300 Energy 250/250 System Corruption 8% Temperature Cool (10) Movement Rolling (100) Location -10/Mines Parts ------- > --- POWER (1) -------- Ion Engine > --- PROPULSION (2) --- Compact Wheel > --- UTILITY (2) ------ Small Storage Unit > --- WEAPON (2) ------- Light Assault Rifle Mini Grenade Launcher > --- INVENTORY (8) ---- Light Nuclear Core Huge Storage Unit Medium Armor Plating Medium Armor Plating Medium Armor Plating Assault Rifle Peak State ------------ > --- POWER ------------ Ion Engine > --- PROPULSION ------- Light Treads Light Treads > --- UTILITY ---------- Small Storage Unit Medium Armor Plating > --- WEAPON ----------- Medium Laser Assault Rifle > --- INVENTORY -------- Light Ion Engine Huge Storage Unit Medium Armor Plating Medium Armor Plating Medium Armor Plating Assault Rifle Light Assault Rifle [Rating: 9] Favorites ----------- Power Ion Engine Engine Ion Engine Propulsion Compact Wheel Treads Light Treads Wheel Compact Wheel Utility Small Storage Unit Storage Small Storage Unit Protection Medium Armor Plating Weapon Assault Rifle Energy Gun Medium Laser Ballistic Gun Assault Rifle Launcher Mini Grenade Launcher Build | -11 -10 -10 ------- Run | Yrd Mat Min Slots Evolved . | . . . Power . | . . . Propulsion . | . . . Utility . | . . . Weapon . | . . . Parts Attached 13 | 6 3 4 Power 1 | 1 . . Engine 1 | 1 . . Core . | . . . Reactor . | . . . Propulsion 5 | 2 2 1 Treads 2 | 2 . . Leg . | . . . Wheel 3 | . 2 1 Hover . | . . . Flight . | . . . Utility 2 | 1 1 . Device . | . . . Storage 1 | 1 . . Processor . | . . . Hackware . | . . . Protection 1 | . 1 . Artifact . | . . . Weapon 5 | 2 . 3 Energy Gun 1 | 1 . . Energy Cannon . | . . . Ballistic Gun 3 | 1 . 2 Ballistic Cannon . | . . . Launcher 1 | . . 1 Special Weapon . | . . . Impact Weapon . | . . . Slashing Weapon . | . . . Piercing Weapon . | . . . Special Melee Weapon . | . . . Unidentified Prototypes . | . . . Parts Lost 5 | . 1 4 Power . | . . . Propulsion 2 | . . 2 Utility 1 | . 1 . Weapon 2 | . . 2 Highest Loss Streak 4 | . 1 4 To Critical Strikes . | . . . Average Backups 5 | . 5 7 Power . | . 1 1 Propulsion . | . . . Utility 3 | . 3 4 Weapon 1 | . 1 1 Tool/Special . | . . . Unused Backups 6 | . . 6 Power 2 | . . 2 Propulsion . | . . . Utility 4 | . . 4 Weapon . | . . . Tool/Special . | . . . Average Slot Usage (%) 84 | . 92 77 Engine 14 | . 14 14 Treads 8 | . 18 . Wheel 16 | . 9 21 Storage 14 | . 14 14 Protection 3 | . 7 . Energy Gun 11 | . 14 9 Ballistic Gun 15 | . 14 17 Peak Build Rating 9 | 6 9 7 Average Rating 6 | 4 7 6 On Entrance 4 | . 6 7 Naked Turns . | . . . Heaviest Build 21 | 14 21 14 Greatest Support 40 | 40 40 32 Greatest Overweight (x) 4 | . 1 4 Average Overweight (x) . | . . . Largest Inventory Capacity 8 | 8 8 8 Average Capacity 7 | 6 8 8 Most Carried 8 | 2 8 8 Average Carried 5 | . 5 7 Final Capacity 8 | 8 8 8 Final Carried 8 | 2 8 6 Class Distribution -------------------- 100% | Mutant Dominant Class ---------------- Mutant | -10/Materials Mutant | -10/Mines Resources | -11 -10 -10 ----------- Run | Yrd Mat Min Matter Collected 419 | 260 61 98 Remotely . | . . . Salvage Created 305 | . 97 208 Parts 19 | . 8 11 Haulers Intercepted . | . . . Recyclers Shooed . | . . . Parts Field Recycled . | . . . Retrieved Matter . | . . . Parts Self-Destructed . | . . . Prevented . | . . . Kills | -11 -10 -10 ------- Run | Yrd Mat Min Combat Hostiles Destroyed 10 | . 4 6 Guns 9 | . 4 5 AOE 1 | . . 1 Classes Destroyed 3 | . 2 1 Swarmer 3 | . 3 . Grunt 5 | . 1 4 Assembled 2 | . . 2 Best Kill Streak 4 | . 4 2 Combat Bots Only 4 | . 4 2 Max Kills in Single Turn 1 | . 1 1 Gunslinging . | . . . Exploded 1 | . . 1 Melee . | . . . Uniques/NPCs Destroyed . | . . . Combat | -11 -10 -10 -------- Run | Yrd Mat Min Hostile Shots Fired 89 | . 37 52 Missed 27 | . 12 15 Hits 62 | . 25 37 Melee 8 | . . 8 Projectile 54 | . 25 29 Part Disruptions 1 | . . 1 Damage Taken 835 | . 228 607 Core 268 | . 46 222 Absorbed by Shields . | . . . Core Remaining (%) 100 | 100 . . Volleys Fired 34 | . 12 22 Largest 2 | . 2 2 Hottest 70 | . 70 70 Shots Fired 63 | . 24 39 Gun 59 | . 24 35 Cannon . | . . . Launcher 4 | . . 4 Special . | . . . Kinetic 35 | . 12 23 Thermal 24 | . 12 12 Explosive 4 | . . 4 Electromagnetic . | . . . Robot Hit Streak 6 | . 4 6 Robot Miss Streak 3 | . 2 3 Penetration Max . | . . . Secondary Targets 3 | . 3 . Max Gunslinging Chain 1 | . 1 . Shots Hit Robots 38 | . 14 24 Core Hits 18 | . 5 13 Critical Kills . | . . . Critical Parts Destroyed . | . . . Critical Strikes . | . . . Melee Attacks . | . . . Impact . | . . . Slashing . | . . . Piercing . | . . . Sneak Attacks . | . . . Combat Hostiles . | . . . Follow-up Attacks . | . . . Damage Inflicted 612 | . 190 422 Guns 472 | . 190 282 Cannons . | . . . Explosions 140 | . . 140 Melee . | . . . Ramming . | . . . Kinetic 239 | . 73 166 Thermal 233 | . 117 116 Explosive 140 | . . 140 Electromagnetic . | . . . Impact . | . . . Slashing . | . . . Piercing . | . . . Highest Corruption 8 | . . 8 Average Corruption 7 | . . 7 Corruption Purged . | . . . Corruption Blocked . | . . . Effects 3 | . . 3 Message Errors 2 | . . 2 Matter Fused 1 | . . 1 Overload Shots . | . . . Overflow Damage 14 | . . 14 Projectiles . | . . . Explosions 14 | . . 14 Melee . | . . . Knockbacks . | . . . Impact . | . . . Kinetic . | . . . Secondary . | . . . Self-Inflicted Damage 67 | . . 67 Shots 2 | . . 2 Rammed . | . . . Targets Rammed . | . . . Kicked . | . . . Crushed . | . . . Highest Temperature 153 | . 153 84 Average Temperature 49 | . 69 31 Received Heat Transfer 195 | . 30 165 Siege Activations . | . . . Martial Activations . | . . . Shielding Activations . | . . . Robots Disrupted . | . . . Combat Hostiles . | . . . Robots Corrupted . | . . . Combat Hostiles . | . . . Parts Fried . | . . . Impact Corruptions . | . . . Robots Melted . | . . . Combat Hostiles . | . . . Parts Melted 2 | . 1 1 Heat Transferred 666 | . 333 333 Parts Sabotaged . | . . . Parts Stolen . | . . . Parts Stripped . | . . . Power Chain Reactions . | . . . Alert | -11 -10 -10 ------- Run | Yrd Mat Min Maximum Alert Level . | . . . Low Security (%) 100 | 100 100 100 Level 1 . | . . . Level 2 . | . . . Level 3 . | . . . Level 4 . | . . . Level 5 . | . . . High Security . | . . . Max Security . | . . . Peak Influence 89 | . 80 89 Initial 23 | . . 23 Average 26 | . 14 43 Influence Increases 293 | . 111 182 Destroy 0b10 Robot/C 180 | . 80 100 Destroy Leader 40 | . 20 20 Allied During Kill 1 | . . 1 Successful Hack 9 | . 9 . Destroy Structure 18 | . 2 16 Lose Combat Pursuer 45 | . . 45 Influence Decreases 277 | . 51 226 Entered New Map 37 | . . 37 Time Decay 170 | . 41 129 Lost Part 50 | . 10 40 Lost Ally 20 | . . 20 Squads Dispatched 3 | . 2 1 Investigation . | . . . Extermination . | . . . Reinforcement 2 | . 2 . Assault 1 | . . 1 Garrison . | . . . Intercept . | . . . Searches Triggered . | . . . Construction Impeded . | . . . Haulers Reinforced . | . . . Active Scanning Responses . | . . . Cargo Convoy Interrupts . | . . . Stealth | -11 -10 -10 --------- Run | Yrd Mat Min Distress Signals . | . . . Communications Jammed . | . . . Distress Signals . | . . . Times Spotted 36 | . 9 27 Peak Tracking Total 23 | . 4 23 Tactical Retreats 3 | . . 3 Traps | -11 -10 -10 ------- Run | Yrd Mat Min Traps Triggered . | . . . Indirectly . | . . . Trap Hack Attempts . | . . . Triggered . | . . . Disarmed . | . . . Reprogrammed . | . . . Reused . | . . . Traps Extracted . | . . . Installed . | . . . Triggered . | . . . Machines | -11 -10 -10 ---------- Run | Yrd Mat Min Machines Disabled . | . . . Max in Single Turn . | . . . Machines Repaired . | . . . Machines Dismantled . | . . . Machines Sabotaged . | . . . Overloaded Fab Kills . | . . . Hacking | -11 -10 -10 --------- Run | Yrd Mat Min Machines Accessed 2 | . 2 . Terminals 2 | . 2 . Fabricators . | . . . Repair Stations . | . . . Recycling Units . | . . . Scanalyzers . | . . . Garrison Access . | . . . Total Hacks 5 | . 5 . Successful 3 | . 3 . Failed 2 | . 2 . Catastrophic . | . . . Database Lockouts . | . . . Manual 5 | . 5 . Terminals 5 | . 5 . Fabricators . | . . . Repair Stations . | . . . Recycling Units . | . . . Scanalyzers . | . . . Garrison Access . | . . . Terminal Hacks 1 | . 1 . Robot Analysis 1 | . 1 . Fabricator Hacks . | . . . Repair Station Hacks . | . . . Recycling Unit Hacks . | . . . Scanalyzer . | . . . Garrison Access Hacks . | . . . Unauthorized Hacks 2 | . 2 . Terminals 2 | . 2 . Botnet 2 | . 2 . Fabricators . | . . . Repair Stations . | . . . Recycling Units . | . . . Scanalyzers . | . . . Garrison Access . | . . . Data Cores Recovered . | . . . Used . | . . . Hacking Detections 2 | . 2 . Full Trace Events . | . . . Feedback Events . | . . . Feedback Blocked . | . . . Robot Schematics Acquired . | . . . Robots Built . | . . . Authchips . | . . . Time . | . . . Total Robot Build Rating . | . . . Part Schematics Acquired . | . . . Parts Built . | . . . Authchips . | . . . Time . | . . . Total Part Build Rating . | . . . Parts Repaired . | . . . Time . | . . . Parts Recycled . | . . . Recycled Matter . | . . . Retrieved Matter . | . . . Retrieved Components . | . . . Parts Scanalyzed . | . . . Part Schematics Acquired . | . . . Parts Damaged . | . . . Bothacking | -11 -10 -10 ------------ Run | Yrd Mat Min Used RIF Installer . | . . . Robots Hacked . | . . . Non-combat . | . . . Combat . | . . . Robot Hacks Applied . | . . . Relay Couplers Released . | . . . Fabnet Peak Effective % . | . . . Robots Rewired . | . . . Allies Hacked . | . . . Hacks Repelled . | . . . Allies | -11 -10 -10 -------- Run | Yrd Mat Min Total Allies 1 | . . 1 Largest Group 1 | . . 1 Highest-Rated Group 31 | . . 31 Highest-Rated Ally 31 | . . 31 Total Orders . | . . . Ally Attacks 7 | . . 7 Total Damage 42 | . . 42 Kills 1 | . . 1 Allies Corrupted . | . . . Allies Melted . | . . . Intel | -11 -10 -10 ------- Run | Yrd Mat Min Active Infowar (turns) . | . . . Robot Analysis Total 1 | . 1 . Derelict Logs Recovered 1 | . . 1 Drone Launches . | . . . Drone Recoveries . | . . . Exploration | -11 -10 -10 ------------- Run | Yrd Mat Min Turns Passed 569 | 77 224 268 Spaces Moved 375 | 46 131 198 Core 10 | 6 . 4 Treads 117 | 40 77 . Legs . | . . . Wheels 248 | . 54 194 Hover . | . . . Flight . | . . . Fastest Speed 50 | 50 100 100 Average Speed 119 | 145 135 102 Slowest Speed 250 | 160 160 250 Overloaded Moves . | . . . Propulsion Burnouts . | . . . Robots Hopped . | . . . Potential Cave-ins . | . . . Cave-ins Triggered . | . . . Exploration Rate (%) 25 | 5 37 35 Regions Visited 2 Branch Regions 1 Pre-discovered Areas 1 | . . 1 Known Exits Taken . | . . . Unknown Exits Taken 2 | 1 1 . Scrap Searched . | . . . Spaces Dug . | . . . Terrain Destroyed 33 | . . 33 Melee . | . . . Projectile . | . . . AOE 33 | . . 33 Terrain Rammed . | . . . Walls Destroyed . | . . . Machines Disabled . | . . . Actions | -11 -10 -10 --------- Run | Yrd Mat Min Total 433 | 53 153 227 Wait . | . . . Move 373 | 45 130 198 Hop . | . . . Pick Up 10 | 2 6 2 Fast Attach 9 | 6 3 . Attach 3 | . . 3 Detach . | . . . Swap 1 | . . 1 Drop 3 | . 2 1 Fire 34 | . 12 22 Melee . | . . . Ram . | . . . Kick . | . . . Crush . | . . . Escape Stasis . | . . . Rewire . | . . . Trap . | . . . Miscellaneous . | . . . Route ------- -11/Scrapyard -10/Materials (discovered 2 exits: [*Mat] / [*Min]) -10/Mines History --------- Turn | Location | Event 9 | -11/Scrapyard | Discovered new exit (range 15) 78 | -11/Scrapyard | Entered Materials 194 | -10/Materials | Discovered new exit (range 15) 292 | -10/Materials | Discovered new exit (range 8) 302 | -10/Materials | Entered Mines 318 | -10/Mines | Build established: Mutant 399 | -10/Mines | Met a Derelict testing a Signal Generator 449 | -10/Mines | Assembled infested the area 482 | -10/Mines | Core integrity fell below 50% 508 | -10/Mines | Lost 4 parts (2n2w) 566 | -10/Mines | Core integrity fell below 20% 570 | -10/Mines | Destroyed self with Mini Grenade Launcher Last Messages --------------- 00496_ Acquired 16 matter. 00498_ Acquired 1 matter. 00500_ Acquired 10 matter. 00501_ Acquired 4 matter. 00506_ System corrupted: Matter fused (-8). 00506_ Acquired 12 matter. 00508_ K-01 Serf collects debris. 00509_ Acquired 4 matter. 00511_ as-39872 destroyed. 00512_ Acquired 4 matter. 00533_ NP2 MF|LEJ5NCZA >C=%MIMB 00550_ R-06 Scavenger suffers critical hit (Destroy). 00550_ R-06 Scavenger destroyed. 00561_ Acquired Mni. Grenade Launcher. 00564_ Acquired 10 matter. 00568_ The unstable cave ceiling collapses. 00568_ as-95646 destroyed. 00570_ Destroyed Asb. Hover Unit. 00570_ Destroyed Asb. F-torch. Map ----- +----------------------------------------------------+ | | | ?????????????????????????????????????????????????? | | ?????????????????????????????????????????????????? | | ?????????????????????????????????????????????????? | | ???????????????????#####????????????????########## | | ????????????######## ##??????????????## | | ???????####?# #?????????????## #### | | ??????## ## ##### ##??####??????# =#??# | | ???#### # #???## #### ##?????# !=#### | | #### ##???### ## #?????# *[% [* | | ? #?????## ####### =##### | | ??? #??????# **! #???? | | ???? #??????# [%## ##???? | | ?????? #??????## ##=############ ##????? | | ???????# #???????#####%#??????????####?????? | | ???????## ?????????????# #???????????????????? | | ????????# # #??????????????# #???????????????????? | | ????????# # ######?????????#%#?????###???????????? | | ????????# #?????????#%#????# ##??????????? | | ????????####### ##???????# #?###& #??????????? | | ?????????????## ####????# ### #??????????? | | ?????????????# # # ##### ## #???????????? | | ?????????????## # ## #????????????? | | ?????????????# ## #??????????????? | | ??????????????# * = * # ## ##??????????????? | | ???????????????# %* a @!a #???????????????? | | ????????????????# % * = #### ##???????????????? | | ????????????????#!%# #?###????????????????? | | ?????????????????*!= !% ## ##????????????????????? | | ????????????????###### #?##?????????????????????? | | ?????????????????????# #????????????????????????? | | ?????????????????????# #????????????????????????? | | ?????????????????????# #????????????????????????? | | ????????????????????## #????????????????????????? | | ????????????????????# #????????????????????????? | | ???????????????????## #????????????????????????? | | ?????????????????### ##???????????????????????? | | ??????????????#### #???????????????????????? | | ??????????????# #??????????????????????? | | ????????? #??????????????????????? | | ????????# #??????????????????????? | | ????????# ## #?????????????????????? | | ????????# #?## ???????????????????? | | ????????# #???## ??????????????????? | | ????????## #?????#### ?????????????????? | | ?????????# " #?????????? ##### ????????????????? | | ?????????##%#??????????? #?????$????????????????? | | ??????????#"???????????? #??????????????????????? | | ?????????? ????????????? #??????????????????????? | | ????????? ??????????????? #??????????????????????? | +----------------------------------------------------+ Best States ------------- Heat Dissipation 25 Energy Generation 10 Energy Capacity 250 Matter Stores 300 Matter Capacity 300 Sight Range 16 Terrain Scan Density 10 Armor Coverage 225 Evasion (%) 40 Recoil Reduction 2 Item Schematics ----------------- None Robot Schematics ------------------ None Fabricated ------------ Nothing Repaired ---------- Nothing Alien Tech Used ----------------- None Achievements -------------- None Challenges ------------ None Game ------ Seed GunGrenadeDoublenader Manual? 0 Play Time 00:08:26 Cumulative 209.7 hours Start 2025.05.23 @ 22:26:15 End 2025.05.23 @ 22:32:09 Sessions 1 Manual Loads 0 Difficulty Rogue Special Mode None Game No. 203 Rogue 203 Adventurer 0 Explorer 0 Win Type - Total 1 Types 1/0/0/0/0/0/0/0/0/0 Lore% 71 Gallery% 58 Achievement% 48 Wizard Run 0 Options --------- Layout 1 ASCII 0 Keyboard 0 Movement Mouse Keybinds 0 Fullscreen 1 Font 24/Smallcaps Map View 50x35 Zoom Use 0% Tactical HUD 1 Map Filters NONE Filters NONE Steam 1 RUN: a087008b-fdcf-48b5-a734-6c5b646278fe